Cogmind - Beta 16 @@@ ROGUE MODE // 2026.01.05 @ 06:55:02 Player: tsintsir Result: Destroyed by S-27 Virus with Autogun Performance ------------- Evolutions (5) 2500 Regions Visited (15) 3000 Robots Destroyed (30) 150 Value Destroyed (861) 861 Prototype IDs (23) 460 Alien Tech Used (0) 0 Bonus (2101) 2101 TOTAL SCORE: 9072 Bonus ------- High Alert Combat Kills 35 Follower Combat Kills 366 Entered Garrisons 200 Entered DSFs 500 Met Warlord at Base 500 MAIN.C Attacked Warlord 500 Cogmind --------- Core Integrity 0/1000 Matter 295/300 Energy 98/100 System Corruption 5% Temperature Cool (0) Movement Core (50) Location -4/Proximity Caves Parts ------- > --- POWER (1) -------- (None) > --- PROPULSION (4) --- (None) > --- UTILITY (10) ----- Advanced Visual Processing Unit Improved Signal Interpreter Terrain Scan Processor Core Analyzer > --- WEAPON (2) ------- (None) > --- INVENTORY (5) ---- Armor Integrity Analyzer Makeshift Transmission Jammer Improved Remote Datajack Makeshift Sword Peak State ------------ > --- POWER ------------ Improved Deuterium Engine > --- PROPULSION ------- Improved VTOL Module Makeshift Flight Unit Nuclear Pulse Array > --- UTILITY ---------- Advanced Visual Processing Unit Improved Signal Interpreter Terrain Scan Processor Improved Melee Analysis Suite Core Analyzer Armor Integrity Analyzer Microactuators ECM Suite > --- WEAPON ----------- Vortex Catalyst Activator > --- INVENTORY -------- Armor Integrity Analyzer Makeshift Transmission Jammer Authchip [R/Combat] Authchip [R/Combat] Improved Remote Datajack [Rating: 69] Favorites ----------- Power Light Ion Engine Engine Light Ion Engine Propulsion Flight Unit Wheel Wheel Flight Unit Flight Unit Utility Advanced Visual Processing Unit Device Improved Terrain Scanner Storage Small Storage Unit Processor Advanced Visual Processing Unit Hackware Hacking Suite Protection Improved Light Armor Plating Weapon Chainsword Energy Gun EM Pulse Gun Ballistic Gun Assault Rifle Ballistic Cannon Flak Cannon Launcher Vortex Catalyst Activator Special Weapon Mining Laser Impact Weapon Flail Slashing Weapon Chainsword Piercing Weapon Spear Special Melee Weapon Datajack Build | -11 -10 -10 -10 -9 -8 -8 -8 -8 -6 -6 -5 -5 -5 -5 -4 ------- Run | Yrd Mat Min Exi Min Mat Sto Gar Rec Fac DSF Fac Upp Upp War Pro Slots Evolved 10 | . . . . . 4 . . . 4 . 2 . . . . Power . | . . . . . . . . . . . . . . . . Propulsion 2 | . . . . . 2 . . . . . . . . . . Utility 8 | . . . . . 2 . . . 4 . 2 . . . . Weapon . | . . . . . . . . . . . . . . . . Parts Attached 52 | 9 . 2 1 . 10 7 1 2 1 . 5 7 2 2 3 Power 4 | 1 . . . . 1 1 . . . . . 1 . . . Engine 4 | 1 . . . . 1 1 . . . . . 1 . . . Core . | . . . . . . . . . . . . . . . . Reactor . | . . . . . . . . . . . . . . . . Propulsion 15 | 3 . 2 . . 3 3 . . . . 2 1 . . 1 Treads . | . . . . . . . . . . . . . . . . Leg . | . . . . . . . . . . . . . . . . Wheel 3 | 3 . . . . . . . . . . . . . . . Hover . | . . . . . . . . . . . . . . . . Flight 12 | . . 2 . . 3 3 . . . . 2 1 . . 1 Utility 19 | 2 . . 1 . 2 2 . 2 1 . 3 2 2 . 2 Device 5 | 1 . . . . . 2 . . . . . 1 1 . . Storage 2 | 1 . . 1 . . . . . . . . . . . . Processor 7 | . . . . . 2 . . 1 1 . 1 1 1 . . Hackware 4 | . . . . . . . . 1 . . 1 . . . 2 Protection 1 | . . . . . . . . . . . 1 . . . . Artifact . | . . . . . . . . . . . . . . . . Weapon 14 | 3 . . . . 4 1 1 . . . . 3 . 2 . Energy Gun 2 | 1 . . . . . . . . . . . . . 1 . Energy Cannon . | . . . . . . . . . . . . . . . . Ballistic Gun 3 | 2 . . . . . . 1 . . . . . . . . Ballistic Cannon 1 | . . . . . 1 . . . . . . . . . . Launcher 1 | . . . . . . . . . . . . . . 1 . Special Weapon 1 | . . . . . 1 . . . . . . . . . . Impact Weapon 2 | . . . . . 2 . . . . . . . . . . Slashing Weapon 2 | . . . . . . . . . . . . 2 . . . Piercing Weapon 1 | . . . . . . . . . . . . 1 . . . Special Melee Weapon 1 | . . . . . . 1 . . . . . . . . . Unidentified Prototypes 3 | . . . . . 1 . . . . . . . . 2 . Corrupted Parts 3 | . . . . . . . . . . . 1 . . . 2 System Corruption 9 | . . . . . . . . . . . 4 . . . 5 Parts Lost 27 | . . . . . 1 3 8 . . . 3 . . . 12 Power 3 | . . . . . . . 2 . . . . . . . 1 Propulsion 9 | . . . . . . 2 2 . . . 1 . . . 4 Utility 10 | . . . . . . 1 2 . . . 1 . . . 6 Weapon 5 | . . . . . 1 . 2 . . . 1 . . . 1 Highest Loss Streak 11 | . . . . . 1 2 2 . . . 3 . . . 11 To Critical Strikes . | . . . . . . . . . . . . . . . . Average Backups 5 | 1 4 7 8 8 7 8 5 4 3 3 3 3 4 4 4 Power . | . 1 1 2 2 1 1 . . . . . . . . . Propulsion . | . 1 . 1 1 . . . . . . . . . . . Utility 2 | . . . 1 1 1 3 3 3 3 3 2 2 3 3 2 Weapon 1 | 1 2 3 4 4 3 2 2 1 . . . . . . . Tool/Special . | . . . . . . . . . . . . . . . . Unused Backups 9 | . . 1 . . 1 3 . . . . . . 1 . 3 Power . | . . . . . . . . . . . . . . . . Propulsion . | . . . . . . . . . . . . . . . . Utility 2 | . . . . . . . . . . . . . . . 2 Weapon 5 | . . 1 . . 1 3 . . . . . . . . . Tool/Special 2 | . . . . . . . . . . . . . 1 . 1 Average Slot Usage (%) 70 | . 100 67 57 57 83 94 73 33 46 46 51 48 70 81 61 Engine 4 | . 14 3 . . 8 9 7 . . . . 2 5 5 2 Wheel 1 | . 28 5 . . . . . . . . . . . . . Flight 21 | . . 21 28 28 31 34 23 9 6 6 14 11 17 17 9 Device 8 | . 14 14 14 14 9 6 7 . . . . 2 5 11 7 Storage 6 | . 14 14 14 14 9 9 8 . . . . . . . . Processor 17 | . . . . . 15 18 18 20 26 26 25 25 29 35 30 Impact Weapon 3 | . . . . . 4 17 7 1 6 6 4 . . . . Slashing Weapon 2 | . . . . . . . . . . . . 1 11 10 7 Peak Build Rating 69 | 9 9 9 6 6 23 28 20 19 22 22 47 50 58 69 59 Average Rating 24 | 5 9 6 6 6 16 23 16 11 22 22 37 36 50 58 39 On Entrance 21 | . 9 9 6 6 6 23 17 10 19 22 22 29 50 58 59 Avg Prop Armor Cover (%) 4 | . . . . . . . . . . . 4 . . . . Naked Turns . | . . . . . . . . . . . . . . . . Heaviest Build 19 | 13 13 13 6 6 14 16 13 3 3 3 6 17 19 19 19 Greatest Support 26 | 26 20 20 8 8 17 18 13 5 5 5 25 26 26 26 26 Greatest Overweight (x) 3 | 2 . 3 . . . 1 1 . . . . . . . 1 Average Overweight (x) . | . . . . . . . . . . . . . . . . Largest Inventory Capacity 8 | 8 8 8 8 8 8 8 8 5 5 5 5 5 5 5 5 Average Capacity 6 | 7 8 8 8 8 8 8 7 5 5 5 5 5 5 5 5 Most Carried 8 | 4 4 8 8 8 8 8 8 5 3 3 4 4 5 5 5 Average Carried 5 | 2 4 7 8 8 6 7 5 4 3 3 3 3 4 4 4 Final Capacity 8 | 8 8 8 8 8 8 8 5 5 5 5 5 5 5 5 5 Final Carried 8 | 4 4 8 8 8 8 8 5 4 3 3 4 4 4 5 4 Class Distribution -------------------- 45% | Mutant 21% | Derelict-Gladiator 12% | Sprinter 7% | Scavenger-Scout 6% | Scavenger-Sprinter Dominant Class ---------------- Mutant | -10/Materials Mutant | -10/Mines Mutant | -10/Exiles Mutant | -9/Mines Scavenger-Scout | -8/Materials Scavenger-Scout | -8/Storage Sprinter | -8/Garrison Mutant | -8/Recycling Mutant | -6/Factory Mutant | -6/DSF Mutant | -5/Factory Mutant | -5/Upper Caves Derelict-Gladiator | -5/Upper Caves Derelict-Gladiator | -5/Warlord Mutant | -4/Proximity Caves Resources | -11 -10 -10 -10 -9 -8 -8 -8 -8 -6 -6 -5 -5 -5 -5 -4 ----------- Run | Yrd Mat Min Exi Min Mat Sto Gar Rec Fac DSF Fac Upp Upp War Pro Matter Collected 1038 | 297 . 58 . . 106 179 56 . . 5 . 113 182 7 35 Remotely . | . . . . . . . . . . . . . . . . Salvage Created 702 | 112 . 128 . . 117 167 76 . . . . . . . 102 Parts 35 | 8 . 7 . . 3 7 2 . . . . . . . 8 Haulers Intercepted 1 | . . . . . 1 . . . . . . . . . . Recyclers Shooed 1 | . . 1 . . . . . . . . . . . . . Parts Field Recycled . | . . . . . . . . . . . . . . . . Retrieved Matter . | . . . . . . . . . . . . . . . . Parts Self-Destructed 7 | . . . . . . . . . . . . . . . 7 Prevented . | . . . . . . . . . . . . . . . . Parts Restored . | . . . . . . . . . . . . . . . . Kills | -11 -10 -10 -10 -9 -8 -8 -8 -8 -6 -6 -5 -5 -5 -5 -4 ------- Run | Yrd Mat Min Exi Min Mat Sto Gar Rec Fac DSF Fac Upp Upp War Pro Combat Hostiles Destroyed 21 | . . . . . 4 6 7 . . . . . . . 4 Melee 9 | . . . . . . 3 2 . . . . . . . 4 Cannons 3 | . . . . . 3 . . . . . . . . . . AOE 3 | . . . . . . . 3 . . . . . . . . Classes Destroyed 9 | 2 . 1 . . 4 1 1 . . . . . . . . Builder 1 | . . 1 . . . . . . . . . . . . . Tunneler 3 | 3 . . . . . . . . . . . . . . . Hauler 1 | . . . . . 1 . . . . . . . . . . Recycler 2 | 1 . 1 . . . . . . . . . . . . . Watcher 2 | . . . . . 1 1 . . . . . . . . . Swarmer 14 | . . . . . 3 4 3 . . . . . . . 4 Grunt 4 | . . . . . . . 4 . . . . . . . . Sentry 2 | . . . . . . 2 . . . . . . . . . Hunter 1 | . . . . . 1 . . . . . . . . . . Best Kill Streak 4 | 3 . 2 . . 4 2 3 . . . . . . . 4 Combat Bots Only 4 | . . . . . 2 2 3 . . . . . . . 4 Max Kills in Single Turn 3 | 1 . 1 . . 1 1 3 . . . . . . . 1 Gunslinging . | . . . . . . . . . . . . . . . . Exploded 3 | . . . . . . . 3 . . . . . . . . Melee 1 | . . . . . . 1 1 . . . . . . . 1 Uniques/NPCs Destroyed . | . . . . . . . . . . . . . . . . Combat | -11 -10 -10 -10 -9 -8 -8 -8 -8 -6 -6 -5 -5 -5 -5 -4 -------- Run | Yrd Mat Min Exi Min Mat Sto Gar Rec Fac DSF Fac Upp Upp War Pro Hostile Shots Fired 332 | . 2 7 . . 25 60 72 . . 16 58 . 2 . 90 Missed 142 | . . 4 . . 16 34 26 . . 5 29 . 2 . 26 Hits 190 | . 2 3 . . 9 26 46 . . 11 29 . . . 64 Melee 10 | . . . . . . . 2 . . 2 6 . . . . Projectile 180 | . 2 3 . . 9 26 44 . . 9 23 . . . 64 AOE 8 | . . 4 . . 1 . . . . 1 2 . . . . Critical Strikes 17 | . 1 . . . . . 4 . . 1 9 . . . 2 Damage Taken 3454 | . 29 102 . . 115 323 751 . . 382 757 . . . 995 Core 1834 | . . 41 . . 46 81 348 . . 313 392 . . . 613 Absorbed by Shields 37 | . . . . . . . 37 . . . . . . . . Regen/Repaired (Parts) 43 | . . . . . . 32 . . . . . . . 11 . Core Remaining (%) 64 | 100 . . . 83 . . . 13 . 63 . . . . . Volleys Fired 29 | 12 . 3 . . 12 . 2 . . . . . . . . Largest 2 | 2 . 2 . . 1 . 1 . . . . . . . . Hottest 100 | 60 . 60 . . 100 . 25 . . . . . . . . Shots Fired 44 | 24 . 6 . . 12 . 2 . . . . . . . . Gun 32 | 24 . 6 . . . . 2 . . . . . . . . Cannon 10 | . . . . . 10 . . . . . . . . . . Launcher . | . . . . . . . . . . . . . . . . Special 2 | . . . . . 2 . . . . . . . . . . Kinetic 27 | 12 . 3 . . 10 . 2 . . . . . . . . Thermal 2 | . . . . . 2 . . . . . . . . . . Explosive . | . . . . . . . . . . . . . . . . Electromagnetic 15 | 12 . 3 . . . . . . . . . . . . . Robot Hit Streak 5 | 5 . 3 . . 4 . . . . . . . . . . Robot Miss Streak 7 | 2 . 1 . . 7 . . . . . . . . . . Penetration Max . | . . . . . . . . . . . . . . . . Secondary Targets . | . . . . . . . . . . . . . . . . Shots Hit Robots 61 | 15 . 4 . . 12 11 11 . . . . . . . 8 Core Hits 30 | 6 . 3 . . 11 3 4 . . . . . . . 3 Critical Kills 2 | . . . . . . 1 1 . . . . . . . . Critical Parts Destroyed 5 | . . . . . 1 3 1 . . . . . . . . Critical Strikes 7 | . . . . . 1 4 2 . . . . . . . . Smash 7 | . . . . . 1 4 2 . . . . . . . . Melee Attacks 133 | . . . . . 5 29 75 1 . . . . 3 3 17 Impact 106 | . . . . . 5 27 73 1 . . . . . . . Slashing 23 | . . . . . . . . . . . . . 3 3 17 Piercing . | . . . . . . . . . . . . . . . . Sneak Attacks 4 | . . . . . . 2 2 . . . . . . . . Combat Hostiles . | . . . . . . . . . . . . . . . . Follow-up Attacks 6 | . . . . . . 5 1 . . . . . . . . Damage Inflicted 2122 | 175 . 98 . . 325 339 904 . . . . . . . 281 Guns 226 | 175 . 51 . . . . . . . . . . . . . Cannons 171 | . . . . . 171 . . . . . . . . . . Explosions 558 | . . 47 . . . . 511 . . . . . . . . Melee 1131 | . . . . . 154 339 357 . . . . . . . 281 Ramming 36 | . . . . . . . 36 . . . . . . . . Kinetic 278 | 84 . 23 . . 171 . . . . . . . . . . Thermal 47 | . . 47 . . . . . . . . . . . . . Explosive 511 | . . . . . . . 511 . . . . . . . . Electromagnetic 119 | 91 . 28 . . . . . . . . . . . . . Impact 850 | . . . . . 154 339 357 . . . . . . . . Slashing 281 | . . . . . . . . . . . . . . . 281 Piercing . | . . . . . . . . . . . . . . . . Highest Corruption 6 | . . . . . . 1 3 3 . . 6 6 6 6 5 Average Corruption 3 | . . . . . . 1 2 3 . . 5 6 6 6 4 Corruption Purged . | . . . . . . . . . . . . . . . . Corruption Blocked . | . . . . . . . . . . . . . . . . Effects 41 | . . . . . . 3 10 . . . 4 4 16 2 2 Message Errors 10 | . . . . . . 1 3 . . . 1 2 2 . 1 Matter Fused 10 | . . . . . . 2 1 . . . 1 . 4 1 1 Heat Flow Errors 7 | . . . . . . . 1 . . . 1 . 4 1 . Energy Discharges 6 | . . . . . . . 2 . . . . 2 2 . . Parts Fused 2 | . . . . . . . . . . . 1 . 1 . . Data Loss (minor) 4 | . . . . . . . 1 . . . . . 3 . . Alerts 2 | . . . . . . . 2 . . . . . . . . Overload Shots . | . . . . . . . . . . . . . . . . Overflow Damage 372 | . . . . . 87 109 148 . . . . . . . 28 Projectiles . | . . . . . . . . . . . . . . . . Explosions 66 | . . . . . . . 66 . . . . . . . . Melee 306 | . . . . . 87 109 82 . . . . . . . 28 Knockbacks 13 | . . . . . 11 . 2 . . . . . . . . Impact 5 | . . . . . 3 . 2 . . . . . . . . Kinetic 8 | . . . . . 8 . . . . . . . . . . Secondary . | . . . . . . . . . . . . . . . . Self-Inflicted Damage 169 | . . . . . . . 169 . . . . . . . . Shots 1 | . . . . . . . 1 . . . . . . . . Rammed 6 | . . . . . . . 6 . . . . . . . . Targets Rammed 6 | . . . . . . . 6 . . . . . . . . Kicked . | . . . . . . . . . . . . . . . . Crushed . | . . . . . . . . . . . . . . . . Highest Temperature 273 | 40 7 . . . 14 4 133 . . . 273 . 204 130 . Average Temperature 70 | 19 7 . . . 9 4 56 . . . 138 . 90 70 . Received Heat Transfer 601 | . 36 . . . 18 81 309 . . . 81 . . . 76 Siege Activations . | . . . . . . . . . . . . . . . . Martial Activations . | . . . . . . . . . . . . . . . . Shielding Activations . | . . . . . . . . . . . . . . . . Robots Disrupted . | . . . . . . . . . . . . . . . . Combat Hostiles . | . . . . . . . . . . . . . . . . Robots Corrupted 7 | . . . . . 2 3 2 . . . . . . . . Combat Hostiles 6 | . . . . . 1 3 2 . . . . . . . . Parts Fried 5 | . . . . . . 3 2 . . . . . . . . Impact Corruptions 13 | . . . . . 2 5 6 . . . . . . . . Robots Melted . | . . . . . . . . . . . . . . . . Combat Hostiles . | . . . . . . . . . . . . . . . . Parts Melted . | . . . . . . . . . . . . . . . . Heat Transferred 50 | . . 50 . . . . . . . . . . . . . Parts Sabotaged . | . . . . . . . . . . . . . . . . Parts Stolen . | . . . . . . . . . . . . . . . . Parts Stripped . | . . . . . . . . . . . . . . . . Power Chain Reactions 1 | . . 1 . . . . . . . . . . . . . Alert | -11 -10 -10 -10 -9 -8 -8 -8 -8 -6 -6 -5 -5 -5 -5 -4 ------- Run | Yrd Mat Min Exi Min Mat Sto Gar Rec Fac DSF Fac Upp Upp War Pro Maximum Alert Level 3 | . . . . . . 1 3 1 . . 1 . . . . Low Security (%) 60 | 100 100 100 . 100 100 77 . . 100 100 81 . . . . Level 1 32 | . . . . . . 22 78 100 . . 18 . . . . Level 2 5 | . . . . . . . 18 . . . . . . . . Level 3 . | . . . . . . . 2 . . . . . . . . Level 4 . | . . . . . . . . . . . . . . . . Level 5 . | . . . . . . . . . . . . . . . . High Security . | . . . . . . . . . . . . . . . . Max Security . | . . . . . . . . . . . . . . . . Peak Influence 724 | 10 30 167 . . 124 399 724 334 128 104 221 . . . . Initial 325 | . . 11 . . . 48 231 325 128 89 54 . . . . Average 162 | 1 3 51 . . 44 109 339 321 128 97 145 . . . . Influence Increases 2274 | 20 30 234 . . 177 743 573 10 . 15 277 . . . 195 Destroy 0b10 Robot/C 780 | . . 160 . . 80 300 160 . . . . . . . 80 Destroy 0b10 Robot/NC 45 | 20 . 10 . . 10 5 . . . . . . . . . Destroy Leader 166 | . . 30 . . 24 92 10 . . . . . . . 10 Allied During Kill 128 | . . 29 . . . 97 2 . . . . . . . . Successful Hack 57 | . . . . . . 19 7 9 . . 22 . . . . Disable Machine 45 | . . . . . 15 30 . . . . . . . . . Anti-Garrison Action 50 | . . . . . . . 50 . . . . . . . . Destroy Structure 103 | . . 5 . . 3 5 89 1 . . . . . . . Partial Spotted 90 | . . . . . . 30 15 . . . 45 . . . . Lose Combat Pursuer 810 | . 30 . . . 45 165 240 . . 15 210 . . . 105 Influence Decreases 2219 | 20 . 264 . . 61 503 205 429 177 39 160 203 18 . 140 Entered New Map 964 | . . 19 . . . 68 125 399 177 39 50 83 4 . . Time Decay 715 | 20 . 185 . . 61 165 . 30 . . 80 120 14 . 40 Lost Part 240 | . . . . . . 30 80 . . . 30 . . . 100 Lost Ally 300 | . . 60 . . . 240 . . . . . . . . . Squads Dispatched 10 | . . . . . 2 4 . . . 1 2 . 1 . . Investigation 2 | . . . . . 1 . . . . . 1 . . . . Extermination . | . . . . . . . . . . . . . . . . Reinforcement 5 | . . . . . 1 2 . . . 1 1 . . . . Assault 3 | . . . . . . 2 . . . . . . 1 . . Garrison . | . . . . . . . . . . . . . . . . Intercept . | . . . . . . . . . . . . . . . . Searches Triggered . | . . . . . . . . . . . . . . . . Construction Impeded . | . . . . . . . . . . . . . . . . Haulers Reinforced . | . . . . . . . . . . . . . . . . Active Scanning Responses . | . . . . . . . . . . . . . . . . Cargo Convoy Interrupts . | . . . . . . . . . . . . . . . . Stealth | -11 -10 -10 -10 -9 -8 -8 -8 -8 -6 -6 -5 -5 -5 -5 -4 --------- Run | Yrd Mat Min Exi Min Mat Sto Gar Rec Fac DSF Fac Upp Upp War Pro Distress Signals 2 | . . . . . 1 1 . . . . . . . . . Communications Jammed . | . . . . . . . . . . . . . . . . Distress Signals . | . . . . . . . . . . . . . . . . Times Spotted 171 | . 2 9 . . 17 47 25 . . 5 26 . 10 6 24 Peak Tracking Total 17 | . 2 3 . . 6 17 8 . . 4 10 . 7 6 9 Tactical Retreats 25 | . 1 1 . . 1 3 6 . . 1 4 . 4 . 4 ECM-based Alert Blocks 22 | . . . . . . . . . . . . . 14 . 8 Traps | -11 -10 -10 -10 -9 -8 -8 -8 -8 -6 -6 -5 -5 -5 -5 -4 ------- Run | Yrd Mat Min Exi Min Mat Sto Gar Rec Fac DSF Fac Upp Upp War Pro Traps Triggered 8 | . . . . . 1 1 6 . . . . . . . . Indirectly . | . . . . . . . . . . . . . . . . Trap Hack Attempts . | . . . . . . . . . . . . . . . . Triggered . | . . . . . . . . . . . . . . . . Disarmed . | . . . . . . . . . . . . . . . . Reprogrammed . | . . . . . . . . . . . . . . . . Reused . | . . . . . . . . . . . . . . . . Traps Extracted . | . . . . . . . . . . . . . . . . Installed . | . . . . . . . . . . . . . . . . Triggered . | . . . . . . . . . . . . . . . . Machines | -11 -10 -10 -10 -9 -8 -8 -8 -8 -6 -6 -5 -5 -5 -5 -4 ---------- Run | Yrd Mat Min Exi Min Mat Sto Gar Rec Fac DSF Fac Upp Upp War Pro Machines Disabled 5 | . . . . . 1 2 2 . . . . . . . . Max in Single Turn 2 | . . . . . 1 1 2 . . . . . . . . Phase Generator 1 | . . . . . . . 1 . . . . . . . . Machines Repaired . | . . . . . . . . . . . . . . . . Machines Dismantled . | . . . . . . . . . . . . . . . . Machines Sabotaged . | . . . . . . . . . . . . . . . . Overloaded Fab Kills . | . . . . . . . . . . . . . . . . Hacking | -11 -10 -10 -10 -9 -8 -8 -8 -8 -6 -6 -5 -5 -5 -5 -4 --------- Run | Yrd Mat Min Exi Min Mat Sto Gar Rec Fac DSF Fac Upp Upp War Pro Machines Accessed 29 | . . . 4 . . 5 3 1 1 . 4 1 . 10 . Terminals 11 | . . . . . . 3 3 1 1 . 3 . . . . Fabricators 1 | . . . . . . . . . . . 1 . . . . Repair Stations 1 | . . . . . . 1 . . . . . . . . . Recycling Units . | . . . . . . . . . . . . . . . . Scanalyzers . | . . . . . . . . . . . . . . . . Garrison Access 1 | . . . . . . 1 . . . . . . . . . Total Hacks 59 | . . . 4 . . 12 4 4 1 . 11 1 . 22 . Successful 42 | . . . 4 . . 7 1 1 1 . 5 1 . 22 . Failed 17 | . . . . . . 5 3 3 . . 6 . . . . Catastrophic 3 | . . . . . . 1 1 . . . 1 . . . . Database Lockouts . | . . . . . . . . . . . . . . . . Manual 24 | . . . . . . 6 3 4 . . 11 . . . . Terminals 25 | . . . . . . 7 4 4 1 . 9 . . . . Fabricators 2 | . . . . . . . . . . . 2 . . . . Repair Stations 4 | . . . . . . 4 . . . . . . . . . Recycling Units . | . . . . . . . . . . . . . . . . Scanalyzers . | . . . . . . . . . . . . . . . . Garrison Access 1 | . . . . . . 1 . . . . . . . . . Terminal Hacks 34 | . . . 4 . . 1 1 1 1 . 3 1 . 22 . Record 14 | . . . 4 . . . . . . . . . . 10 . Robot Schematic 3 | . . . . . . . . . . . 3 . . . . Prototype ID Bank 10 | . . . . . . . . . . . . . . 10 . Open Door 5 | . . . . . . 1 1 . . . . 1 . 2 . Open DSF 1 | . . . . . . . . . 1 . . . . . . Level Access Points 1 | . . . . . . . . 1 . . . . . . . Fabricator Hacks 2 | . . . . . . . . . . . 2 . . . . Load Schematic 1 | . . . . . . . . . . . 1 . . . . Build 1 | . . . . . . . . . . . 1 . . . . Repair Station Hacks 4 | . . . . . . 4 . . . . . . . . . Scan Component 2 | . . . . . . 2 . . . . . . . . . Repair 2 | . . . . . . 2 . . . . . . . . . Recycling Unit Hacks . | . . . . . . . . . . . . . . . . Scanalyzer . | . . . . . . . . . . . . . . . . Garrison Access Hacks 1 | . . . . . . 1 . . . . . . . . . Unlock Access 1 | . . . . . . 1 . . . . . . . . . Unauthorized Hacks 1 | . . . . . . 1 . . . . . . . . . Terminals 1 | . . . . . . 1 . . . . . . . . . Assimilate 1 | . . . . . . 1 . . . . . . . . . Fabricators . | . . . . . . . . . . . . . . . . Repair Stations . | . . . . . . . . . . . . . . . . Recycling Units . | . . . . . . . . . . . . . . . . Scanalyzers . | . . . . . . . . . . . . . . . . Garrison Access . | . . . . . . . . . . . . . . . . Data Cores Recovered . | . . . . . . . . . . . . . . . . Used . | . . . . . . . . . . . . . . . . Hacking Detections 12 | . . . . . . 5 3 1 . . 3 . . . . Full Trace Events 1 | . . . . . . . . . . . 1 . . . . Feedback Events . | . . . . . . . . . . . . . . . . Feedback Blocked . | . . . . . . . . . . . . . . . . Robot Schematics Acquired 3 | . . . . . . . . . . . 3 . . . . Robots Built 3 | . . . . . . . . . . . 3 . . . . Authchips 1 | . . . . . . . . . . . 1 . . . . Time 76 | . . . . . . . . . . . 76 . . . . Total Robot Build Rating 15 | . . . . . . . . . . . 15 . . . . Part Schematics Acquired . | . . . . . . . . . . . . . . . . Parts Built . | . . . . . . . . . . . . . . . . Authchips . | . . . . . . . . . . . . . . . . Time . | . . . . . . . . . . . . . . . . Total Part Build Rating . | . . . . . . . . . . . . . . . . Part Studies Acquired . | . . . . . . . . . . . . . . . . Parts Repaired 2 | . . . . . . 2 . . . . . . . . . Time 64 | . . . . . . 64 . . . . . . . . . Parts Recycled . | . . . . . . . . . . . . . . . . Recycled Matter . | . . . . . . . . . . . . . . . . Retrieved Matter . | . . . . . . . . . . . . . . . . Retrieved Components . | . . . . . . . . . . . . . . . . Parts Scanalyzed . | . . . . . . . . . . . . . . . . Part Schematics Acquired . | . . . . . . . . . . . . . . . . Parts Damaged . | . . . . . . . . . . . . . . . . Bothacking | -11 -10 -10 -10 -9 -8 -8 -8 -8 -6 -6 -5 -5 -5 -5 -4 ------------ Run | Yrd Mat Min Exi Min Mat Sto Gar Rec Fac DSF Fac Upp Upp War Pro Used RIF Installer . | . . . . . . . . . . . . . . . . Robots Hacked . | . . . . . . . . . . . . . . . . Non-combat . | . . . . . . . . . . . . . . . . Combat . | . . . . . . . . . . . . . . . . Robot Hacks Applied . | . . . . . . . . . . . . . . . . Relay Couplers Released . | . . . . . . . . . . . . . . . . Fabnet Peak Effective % . | . . . . . . . . . . . . . . . . Robots Rewired 2 | . . . . . . 1 1 . . . . . . . . Allies Hacked . | . . . . . . . . . . . . . . . . Hacks Repelled . | . . . . . . . . . . . . . . . . Allies | -11 -10 -10 -10 -9 -8 -8 -8 -8 -6 -6 -5 -5 -5 -5 -4 -------- Run | Yrd Mat Min Exi Min Mat Sto Gar Rec Fac DSF Fac Upp Upp War Pro Total Allies 19 | . . 3 . . . 12 1 . . . 3 . . . . Largest Group 10 | . . 3 . . . 10 1 . . . 3 . . . . Highest-Rated Group 173 | . . 40 . . . 173 20 . . . 87 . . . . Highest-Rated Ally 31 | . . 16 . . . 31 20 . . . 29 . . . . Initial Warlord ECA Mod 1 | . . . . . . . . 1 . . . . . . . Total Orders 2 | . . . . . . 2 . . . . . . . . . EXPLORE 2 | . . . . . . 2 . . . . . . . . . Ally Attacks 103 | . . 24 . . . 67 3 . . . 9 . . . . Total Damage 1295 | . . 244 . . . 861 78 . . . 112 . . . . Kills 18 | . . 8 . . . 9 1 . . . . . . . . Allies Corrupted . | . . . . . . . . . . . . . . . . Allies Melted 1 | . . . . . . 1 . . . . . . . . . Intel | -11 -10 -10 -10 -9 -8 -8 -8 -8 -6 -6 -5 -5 -5 -5 -4 ------- Run | Yrd Mat Min Exi Min Mat Sto Gar Rec Fac DSF Fac Upp Upp War Pro Active Infowar (turns) 4052 | 5 77 644 290 24 210 410 845 62 17 54 176 244 487 336 171 Optics 2972 | . . . . . 170 410 845 62 17 54 176 244 487 336 171 Terrain 1450 | 5 77 644 290 24 210 200 . . . . . . . . . Structural 760 | . . . . . . 22 738 . . . . . . . . ECM 1029 | . . . . . . . . . . . . 130 487 336 76 Robot Analysis Total . | . . . . . . . . . . . . . . . . Derelict Logs Recovered 3 | . . 1 . . . . . . . . . 2 . . . Drone Launches 2 | . . . . . . 2 . . . . . . . . . Drone Recoveries 1 | . . . . . . 1 . . . . . . . . . Exploration | -11 -10 -10 -10 -9 -8 -8 -8 -8 -6 -6 -5 -5 -5 -5 -4 ------------- Run | Yrd Mat Min Exi Min Mat Sto Gar Rec Fac DSF Fac Upp Upp War Pro Turns Passed 4165 | 118 77 644 290 24 210 410 845 62 17 54 176 244 487 336 171 Spaces Moved 5992 | 71 96 469 513 55 338 377 787 147 45 63 459 678 729 867 298 Core 103 | 6 . . . . . . . . . . 1 . . . 96 Treads . | . . . . . . . . . . . . . . . . Legs . | . . . . . . . . . . . . . . . . Wheels 287 | 65 96 126 . . . . . . . . . . . . . Hover . | . . . . . . . . . . . . . . . . Flight 5602 | . . 343 513 55 338 377 787 147 45 63 458 678 729 867 202 Fastest Speed 28 | 50 80 37 37 37 29 28 32 35 35 35 34 34 37 37 37 Average Speed 37 | 86 80 50 37 37 30 30 33 35 35 35 34 34 37 37 42 Slowest Speed 280 | 150 80 280 37 37 34 109 109 35 35 35 50 37 37 37 115 Overloaded Moves . | . . . . . . . . . . . . . . . . Propulsion Burnouts . | . . . . . . . . . . . . . . . . Robots Hopped 14 | . . . . . 2 5 1 . . . 3 . 1 2 . Potential Cave-ins 3 | . . 3 . . . . . . . . . . . . . Cave-ins Triggered . | . . . . . . . . . . . . . . . . Exploration Rate (%) 52 | 5 24 82 93 15 31 82 62 41 2 73 23 75 91 94 53 Regions Visited 15 Branch Regions 9 Pre-discovered Areas 3 | . . 1 . . . . . . . . . 1 . 1 . Known Exits Taken 7 | . . . . . . 1 . 1 1 . 1 1 1 1 . Unknown Exits Taken 6 | 1 1 1 1 1 1 . . . . . . . . . . Scrap Searched 7 | . . 1 . . . . . . . . . 2 3 . 1 Spaces Dug 36 | . . . . . 3 5 23 1 . . . . 2 . 2 Terrain Destroyed 112 | . . 5 . . 3 5 94 1 . . . . 2 . 2 Melee 35 | . . . . . 2 5 23 1 . . . . 2 . 2 Projectile 1 | . . . . . 1 . . . . . . . . . . AOE 76 | . . 5 . . . . 71 . . . . . . . . Terrain Rammed . | . . . . . . . . . . . . . . . . Walls Destroyed . | . . . . . . . . . . . . . . . . Machines Disabled . | . . . . . . . . . . . . . . . . Actions | -11 -10 -10 -10 -9 -8 -8 -8 -8 -6 -6 -5 -5 -5 -5 -4 --------- Run | Yrd Mat Min Exi Min Mat Sto Gar Rec Fac DSF Fac Upp Upp War Pro Total 7634 | 100 95 871 613 58 419 632 1259 156 45 93 469 687 941 877 319 Wait 1275 | 3 . 385 99 4 38 214 291 . . 30 1 . 208 2 . Move 5949 | 70 95 468 512 54 333 367 782 146 44 62 452 677 726 863 298 Hop 12 | . . . . . 2 4 1 . . . 3 . 1 1 . Pick Up 30 | 5 . 4 . . 9 3 . 4 . . 2 1 1 1 . Fast Attach 46 | 7 . 2 . . 4 8 . . . 1 10 7 2 4 1 Attach 27 | 1 . 1 . . 8 1 10 3 1 . . . . . 2 Detach 16 | . . 3 . . 3 2 7 . . . . . . . 1 Swap 5 | 1 . . 1 . . 2 1 . . . . . . . . Drop 31 | 1 . 5 1 . 5 9 . 2 . . 1 2 1 4 . Fire 29 | 12 . 3 . . 12 . 2 . . . . . . . . Melee 123 | . . . . . 5 22 74 1 . . . . 2 2 17 Ram 6 | . . . . . . . 6 . . . . . . . . Kick . | . . . . . . . . . . . . . . . . Crush . | . . . . . . . . . . . . . . . . Escape Stasis 85 | . . . . . . . 85 . . . . . . . . Rewire . | . . . . . . . . . . . . . . . . Trap . | . . . . . . . . . . . . . . . . Miscellaneous . | . . . . . . . . . . . . . . . . Route ------- -11/Scrapyard -10/Materials -10/Mines (discovered 2 exits: [*Mat] / *Exi) -10/Exiles (discovered 2 exits: [*Min x2]) -9/Mines -8/Materials -8/Storage -8/Garrison (discovered 2 exits: *Rec x2) -8/Recycling -6/Factory -6/DSF -5/Factory -5/Upper Caves -5/Upper Caves -5/Warlord -4/Proximity Caves History --------- Turn | Location | Event 18 | -11/Scrapyard | Discovered new exit (range 16) 119 | -11/Scrapyard | Entered Materials 186 | -10/Materials | Discovered new exit (range 9) 196 | -10/Materials | Entered Mines 212 | -10/Mines | YI-UF0 nonchalantly dropped a Grenade Launcher on the ground 243 | -10/Mines | Assisted by bots powering up and referring to "LRC-V3" 296 | -10/Mines | Discovered new exit (range 11) 306 | -10/Mines | Build established: Mutant 483 | -10/Mines | Discovered new exit (range 12) 510 | -10/Mines | Deemed a non-threat by the Exiles lab entrance 840 | -10/Mines | Entered Exiles 840 | -10/Exiles | Found Exiles lab abandoned 846 | -10/Exiles | Discovered new exit (range 15) 1056 | -10/Exiles | Discovered new exit (range 10) 1130 | -10/Exiles | Entered Mines 1138 | -9/Mines | Discovered new exit (range 12) 1150 | -9/Mines | Assembled infested the area 1154 | -9/Mines | Entered Materials 1154 | -8/Materials | Evolved 4 slots: Propulsion x2, Utility x2 1364 | -8/Materials | Discovered new exit (range 4) 1364 | -8/Materials | Entered Storage 1421 | -8/Storage | Repaired Imp. Terrain Scanner 1449 | -8/Storage | Repaired Flight Unit 1598 | -8/Storage | Met a pair of Derelict thieves 1677 | -8/Storage | Assisted by bots powering up and referring to "LRC-V3" 1772 | -8/Storage | Identified exit to Garrison 1774 | -8/Storage | Entered Garrison 1778 | -8/Garrison | Lost 10 allies 2215 | -8/Garrison | Build established: Sprinter 2462 | -8/Garrison | Triggered checkpoint 2498 | -8/Garrison | Discovered new exit (range 19) 2504 | -8/Garrison | Attempted to access garrison exit controls, blocked by remote lockdown 2512 | -8/Garrison | Core integrity fell below 50% 2514 | -8/Garrison | Triggered checkpoint 2563 | -8/Garrison | Phase Generator disabled 2564 | -8/Garrison | Core integrity fell below 20% 2616 | -8/Garrison | Discovered new exit (range 12) 2619 | -8/Garrison | Entered Recycling 2627 | -8/Recycling | Identified exit to Factory 2681 | -8/Recycling | Entered Factory 2681 | -6/Factory | Evolved 4 slots: Utility x4 2698 | -6/Factory | Identified exit to DSF 2698 | -6/Factory | Entered DSF 2703 | -6/DSF | Discovered new exit (range 19) 2721 | -6/DSF | Build established: Mutant 2722 | -6/DSF | Additional patrols routed to DSF 2751 | -6/DSF | Identified exit to Factory 2752 | -6/DSF | Entered Factory 2752 | -5/Factory | Evolved 2 slots: Utility x2 2880 | -5/Factory | Fabricated G-50 Soldier? 2926 | -5/Factory | Discovered new exit (range 8) 2928 | -5/Factory | Identified exit to Upper Caves 2928 | -5/Factory | Entered Upper Caves 2932 | -5/Upper Caves | Lost 3 parts (1n1u1w) 3020 | -5/Upper Caves | Learned location of Armory (-3) 3056 | -5/Upper Caves | Learned location of 2 exits from Factory 3075 | -5/Upper Caves | Entered a destroyed Warlord outpost 3156 | -5/Upper Caves | Discovered new exit (range 9) 3171 | -5/Upper Caves | Identified exit to Upper Caves 3172 | -5/Upper Caves | Entered another Upper Caves area 3212 | -5/Upper Caves | Attracted the attention of an 0b10 outpost 3452 | -5/Upper Caves | Build established: Derelict-Gladiator 3613 | -5/Upper Caves | Attracted the attention of an 0b10 checkpoint 3649 | -5/Upper Caves | Discovered new exit (range 5) 3650 | -5/Upper Caves | Identified exit to Warlord 3659 | -5/Upper Caves | Entered Warlord 3677 | -5/Warlord | Discovered new exit (range 9) 3680 | -5/Warlord | Identified exit to Proximity Caves 3691 | -5/Warlord | System corruption cleaned by Quarantine Array 3815 | -5/Warlord | Visited the Vortex Lab 3818 | -5/Warlord | Met EX-DEC 3820 | -5/Warlord | Found Prototype Launcher 3820 | -5/Warlord | Identified Vortex Catalyst Activator 3823 | -5/Warlord | Found Prototype Energy Gun 3823 | -5/Warlord | Identified Vortex Rail 3836 | -5/Warlord | Warlord's base attacked by MAIN.C 3853 | -5/Warlord | Met Warlord 3892 | -5/Warlord | Learned Quarantine security intel 3892 | -5/Warlord | Learned 4 Armory zone layouts 3892 | -5/Warlord | Learned 4 Research zone layouts 3892 | -5/Warlord | Learned 4 Command zone layouts 3985 | -5/Warlord | Opened side exit 3995 | -5/Warlord | Entered Proximity Caves 4084 | -4/Proximity Caves | Core integrity fell below 50% 4116 | -4/Proximity Caves | Core integrity fell below 20% 4147 | -4/Proximity Caves | Lost 11 parts (1p4n6u) 4166 | -4/Proximity Caves | Destroyed by S-27 Virus with Autogun Last Messages --------------- 04095_ Autogun fries itself beyond repair. 04095_ Destroyed VTOL Module. 04095_ Imp. VTOL Module destroyed. 04097_ S-27 Virus destroyed. 04100_ Authchip [R/Combat] destroyed. 04100_ Acquired VTOL Module. 04101_ Acquired 14 matter. 04102_ ECM Suite destroyed. 04106_ Autogun fries itself beyond repair. 04116_ Armor Integrity Analyzer destroyed. 04116_ VTOL Module destroyed. 04116_ Microactuators destroyed. 04118_ Critical hit (Burn: +50). 04120_ I>D/Y>/I9 SSHBXJCM/H OON9,D JC0F4|YH D 04132_ Searching scrap... 04132_ Found HERF Cannon. 04132_ Found Imp. Shock Absorption System. 04132_ Found 43 Matter. 04151_ System corrupted: Matter fused (-10). 04152_ Chainsword destroyed. Map ----- +----------------------------------------------------+ | ??????????????# ## #???????????????????? | | ??????????????# ##??????????????????? | | ?????????????## ### ##??### ##?????????? | | ?????????????# ##?## #??# ???????? ## | | ?????????????# #???## ##??# ????????? | | ?????????????# ##??##"########???# #???????? | | ??#####?????## #####"##??????##### #???????? ? | | ??# #????## ## #???##### # ###?????? ? | | ??# ###### ##?## "" #????? ?? | | ?## ## ### " "" #????? ?? | | ## " " """ ##???? #?? | | # """ ##??? #?? | | #### "" "" #??? #?? | | ########## #### """" " ##?? #?? | | ##???????# "## "" ### ##? | | ##??????# ## "%" #? | | #??????# ## " ## #? | | ### #??????# ## ########### #### #? | | ##??# #??????# ######?????????# % ##??## ###? | | ###??##??????# #???????????#### %##????# ##??? | | ## #?????### ####?##?????# % #?????# ##??? | | #????## ## ?????## ##???### ##?? | | #????# ??????# #???## #?? | | #????? ###########???# ##?? | | ## #??## ### ####?????# #??? | | #?# #??# @ #?????# #??? | | #??###?# ss #????## #??? | | #?????# ######++######s #???## ##??? | | #?????#? ""!"" " ## #???# ##???? | | #????????? "" "] ## #???# ##???? | | # ##??????????#" "" # #???# ## ##??? | | ?###??# ????#??#T #???###?# ##?? | | #???? ### ?# #####???# #?? | | #??? + """" ## ## #### #?? | | ???? " # ##?? | | ????????# ##?? | | ????????# # + # #?? | | # #???????????#" ! = # ## #?? | | ???####????????#" # !## ## ## % #?? | | ??? ??????# # # # # !] ##?? | | ??? ????#" # # ##??? | | ?????# ??#" # # # ##???? | | ?????# ######"/######## ## ####????? | | ????# ## ### #???????? | | ????????????# #?## ##??????? | | ????????????####### ## ## ##??## ##?????? | | ?????????????????## ##? ##?##????## #?????? | | ????????????????## ##??? #??????## #?????? | | ???????????????## #????# #?????## ###?????? | | ???????????????# ##???# ####### ####???????? | +----------------------------------------------------+ Best States ------------- Heat Dissipation 40 Energy Generation 16 Energy Capacity 290 Matter Stores 300 Matter Capacity 300 Sight Range 20 Terrain Scan Range 16 Terrain Scan Density 85 ECM Strength 1 Armor Coverage 150 Melee Speed Boost 20 Evasion (%) 64 Melee Accuracy 6 Core Analysis 6 Armor Integrity Analysis 30 Offensive Hacking 10 Authchip Count 3 Item Schematics ----------------- None Robot Schematics ------------------ P-60 Hacker | -5/Factory | Hacked G-50 Soldier | -5/Factory | Hacked L-41 Fighter | -5/Factory | Hacked Fabricated ------------ G-50 Soldier | x3 | -5/Factory | Authchip Repaired ---------- Imp. Terrain Scanner | 4% | -8/Storage Flight Unit | 45% | -8/Storage Studied --------- None Alien Tech Used ----------------- None Achievements -------------- None Challenges ------------ None Game ------ Seed ChromionCoolingPit Manual? 0 Play Time 01:04:08 Cumulative 74.9 hours Start 2026.01.05 @ 05:53:28 End 2026.01.05 @ 06:55:02 Sessions 1 Manual Loads 0 Difficulty Rogue Special Mode None Game No. 67 Rogue 67 Adventurer 0 Explorer 0 Win Type - Total 2 Types 1/0/0/1/0/0/0/0/0/0 Lore% 48 Gallery% 47 Achievement% 36 Wizard Run 0 Options --------- Layout 0 ASCII 0 Keyboard 0 Movement Mouse Keybinds 0 Fullscreen 2 Font 24/Smallcaps Map View 76x50 Zoom Use 0% Tactical HUD 1 Map Filters NONE Filters NONE Steam 1 RUN: 6e9432f6-b181-4117-b19f-d19c434c74d1